bitfinex/quotes_SOLUSD_20241115
["timestamp","ask_amount","ask_price","bid_price","bid_amount"]
[1731701019487,25.63001633,213.18,213.11,25.75680633]
[1731701019888,25.62941633,213.2,213.13,20.93901633]
[1731701020111,0.09367462,213.21,213.16,20.93901633]
[1731701021106,0.09367462,213.21,213.15,20.93901633]
[1731701021408,20.93901633,213.18,213.11,32.67001633]
[1731701021594,20.93901633,213.16,213.11,11.731]
[1731701021797,4.6904,213.2,213.11,16.4234]
[1731701021995,4.6904,213.2,213.12,0.12549]
[1731701022218,20.93901633,213.18,213.12,0.12549]
[1731701024413,4.6907,213.19,213.13,20.93901633]
[1731701024596,25.62971633,213.19,213.13,20.93901633]
[1731701024799,25.62971633,213.19,213.12,25.75660633]
[1731701025114,25.72289095,213.21,213.14,20.93901633]
[1731701025308,20.93901633,213.2,213.13,20.93901633]
[1731701026187,21.03269095,213.21,213.14,21.06450633]
[1731701026495,0.09367462,213.21,213.16,25.63031633]
[1731701027101,0.09367462,213.21,213.18,20.93901633]
[1731701027316,0.09367462,213.21,213.17,20.93901633]
[1731701027817,0.09367462,213.21,213.18,20.93901633]
[1731701028024,0.09367462,213.21,213.2,21.06450633]
[1731701028322,0.09367462,213.21,213.2,25.75490633]
[1731701028801,0.09367462,213.21,213.2,4.81589]
[1731701028998,0.09367462,213.21,213.18,20.93901633]
[1731701029315,0.09367462,213.21,213.19,21.06450633]
[1731701029505,0.09367462,213.21,213.19,0.12549]
[1731701029831,0.09367462,213.21,213.19,21.06450633]
[1731701030295,0.09367462,213.21,213.19,0.12549]
[1731701030498,0.09367462,213.21,213.17,11.7277]
[1731701030700,20.93901633,213.18,213.11,25.63121633]
[1731701030904,20.93901633,213.14,213.09,4.6926]
[1731701031206,22.99167462,213.21,213.08,32.8144]
[1731701031422,23.776884,213.2,213.08,16.4252]
[1731701031809,38.65667462,213.21,213.08,16.4252]
[1731701032221,38.65667462,213.21,213.04,16.4287]
[1731701032423,20.93901633,213.15,213.08,21.06450633]
[1731701033221,20.93901633,213.15,213.09,0.12549]
[1731701033523,20.93901633,213.13,213.09,4.81819]
[1731701033907,20.93901633,213.14,213.09,4.81819]
[1731701035218,20.93901633,213.15,213.09,4.81819]
[1731701035411,20.93901633,213.11,213.04,25.63271633]
[1731701035612,20.93901633,213.14,213.07,20.93901633]
[1731701036535,20.93901633,213.12,213.04,25.63271633]
[1731701036716,20.93901633,213.1,213.04,25.63271633]
[1731701036919,4.6915,213.15,213.04,25.63271633]
[1731701036920,20.93901633,213.11,213.04,25.63271633]
[1731701037331,20.93901633,213.12,213.05,20.93901633]
[1731701037516,20.93901633,213.13,213.06,20.93901633]
[1731701037714,20.93901633,213.15,213.08,20.93901633]
[1731701038235,20.93901633,213.13,213.07,0.21916462]
[1731701038532,20.93901633,213.14,213.07,21.15818095]
[1731701039032,13.08188452,213.14,213.08,4.693]
[1731701039234,13.08188452,213.14,213.09,0.12549]
[1731701039413,4.6913,213.16,213.09,0.12549]
[1731701039414,13.08188452,213.15,213.09,0.12549]
[1731701040338,13.08188452,213.14,213.09,0.12549]
[1731701040540,17.77318452,213.16,213.09,17.90007452]
[1731701040714,13.08188452,213.15,213.09,17.90007452]
[1731701041035,13.08188452,213.15,213.09,4.81819]
[1731701041420,13.08188452,213.1,213.01,20.0]
[1731701041619,13.08188452,213.11,213.04,13.08188452]
[1731701042651,24.80948452,213.18,213.07,13.08188452]
[1731701042652,13.08188452,213.14,213.07,13.08188452]
[1731701042933,13.08188452,213.12,213.06,23.902374]
[1731701043435,13.08188452,213.14,213.07,13.08188452]
[1731701043741,13.08188452,213.18,213.11,13.08188452]
[1731701043935,13.08188452,213.2,213.13,13.08188452]
[1731701044129,0.09367462,213.21,213.15,13.20737452]
[1731701044333,0.09367462,213.21,213.15,0.12549]
[1731701044537,0.09367462,213.21,213.15,4.81689]
[1731701045343,13.17555914,213.21,213.15,4.81689]
[1731701045522,0.09367462,213.21,213.15,29.62757452]
[1731701045731,0.09367462,213.21,213.16,13.08188452]
[1731701045924,0.09367462,213.21,213.17,13.08188452]
[1731701046129,0.09367462,213.21,213.15,16.54569]
[1731701046130,0.09367462,213.21,213.19,0.12549]
[1731701046627,0.09367462,213.21,213.19,17.89787452]
[1731701046828,0.09367462,213.21,213.19,4.81599]
[1731701047021,0.09367462,213.21,213.19,25.72233636]
[1731701047621,0.09367462,213.21,213.19,4.81599]
[1731701047836,0.09367462,213.21,213.18,23.902374]
[1731701048043,0.09367462,213.21,213.18,4.6908]
[1731701048346,0.09367462,213.21,213.19,0.12549]
[1731701050824,0.09367462,213.21,213.19,25.72243636]
[1731701051044,0.09367462,213.21,213.2,20.90634636]
[1731701051360,0.09367462,213.21,213.19,37.44903636]
[1731701051523,0.09367462,213.21,213.19,16.54269]
[1731701052223,0.09367462,213.21,213.19,37.44903636]
[1731701052521,0.09367462,213.21,213.19,16.54269]
[1731701053544,0.09367462,213.21,213.19,11.85209]
[1731701054546,21.00002098,213.21,213.14,25.59784636]
[1731701054731,21.00002098,213.21,213.15,44.80872036]
[1731701055044,21.00002098,213.21,213.15,23.902374]
[1731701055246,20.90634636,213.2,213.14,16.4208]
[1731701055546,21.00002098,213.21,213.14,37.32714636]
[1731701056053,20.90634636,213.19,213.12,25.59834636]
[1731701056343,20.90634636,213.15,213.1,16.4238]
[1731701056740,20.90634636,213.16,213.1,16.4238]
[1731701056935,20.90634636,213.18,213.11,20.90634636]
[1731701057355,20.90634636,213.19,213.12,20.90634636]
[1731701057734,20.90634636,213.18,213.11,21.03183636]
[1731701058146,20.90634636,213.18,213.12,4.6921]
[1731701059455,25.59694636,213.19,213.12,25.59844636]
[1731701059966,20.90634636,213.18,213.12,4.6921]
[1731701060763,25.59694636,213.19,213.12,37.32884636]
[1731701060947,20.90634636,213.2,213.13,44.80872036]
[1731701061563,20.90634636,213.18,213.13,23.776884]
[1731701062169,20.90634636,213.14,213.08,11.7324]
[1731701062844,20.90634636,213.15,213.08,37.33174636]
[1731701063044,25.59794636,213.15,213.08,37.33174636]
[1731701063549,25.59794636,213.15,213.09,44.68323036]
[1731701063956,25.59794636,213.15,213.09,49.37603036]
[1731701064163,20.90634636,213.13,213.09,23.776884]
[1731701064366,20.90634636,213.13,213.08,11.7324]
[1731701064543,25.59794636,213.15,213.09,23.776884]
[1731701064865,20.90634636,213.15,213.09,23.776884]
[1731701065166,6.5402,213.1,212.97,71.75371929]
[1731701065373,6.5402,213.1,212.96,4.6955]
[1731701065669,6.5402,213.1,212.96,16.4347]
[1731701065852,4.6928,213.09,212.96,16.4347]
[1731701066050,20.90634636,213.06,212.99,20.90634636]
[1731701066250,30.0,213.05,212.99,20.90634636]
[1731701066445,50.90634636,213.05,212.98,20.90634636]
[1731701066657,50.90634636,213.05,212.97,0.09367462]
[1731701066658,50.90634636,213.05,212.97,21.00002098]
[1731701066854,43.09384263,213.05,212.97,13.18751725]
[1731701067056,30.0,213.05,212.99,0.09367462]
[1731701067251,30.0,213.05,213.02,23.776884]
[1731701067646,30.0,213.05,213.03,0.12549]
[1731701067844,13.09384263,213.12,213.03,0.25098]
[1731701068047,4.6917,213.14,213.06,13.09384263]
[1731701068048,13.09384263,213.13,213.06,13.09384263]
[1731701068253,4.6917,213.14,213.02,13.09384263]
[1731701068254,30.0,213.07,213.02,13.09384263]
[1731701068449,30.0,213.07,212.99,20.0]
[1731701068769,20.94018591,213.1,213.03,20.94018591]
[1731701068952,4.6917,213.14,213.0,0.09367462]
[1731701069150,4.6917,213.14,213.01,16.4311]
[1731701069376,20.94018591,213.09,213.02,20.94018591]
[1731701069546,20.94018591,213.1,213.03,44.71706991]
[1731701069866,20.94018591,213.11,213.04,20.94018591]
[1731701070250,20.94018591,213.12,213.05,20.94018591]
[1731701070456,20.94018591,213.11,213.04,20.94018591]
[1731701070662,20.94018591,213.12,213.05,20.94018591]
[1731701070854,20.94018591,213.12,213.06,20.94018591]
[1731701071043,20.94018591,213.08,213.01,11.7365]
[1731701071250,20.94018591,213.06,213.01,11.7365]
[1731701072458,20.94018591,213.07,213.01,11.7365]
[1731701072660,20.94018591,213.06,213.01,11.7365]
[1731701073175,20.94018591,213.06,213.01,23.776884]
[1731701073355,4.6933,213.07,213.01,23.776884]
[1731701073356,25.63348591,213.07,213.01,23.776884]
[1731701074160,20.94018591,213.06,213.01,23.776884]
[1731701075058,25.63348591,213.07,213.01,23.776884]
[1731701075559,20.94018591,213.06,213.01,23.776884]
[1731701075773,20.94018591,213.05,213.01,23.776884]
[1731701076074,20.94018591,213.04,212.98,16.4327]
[1731701076575,20.94018591,213.04,212.99,23.776884]
[1731701076768,20.94018591,213.05,212.99,23.776884]
[1731701076968,20.94018591,213.04,212.98,16.4327]
[1731701077174,20.94018591,213.05,212.98,37.37288591]
[1731701078256,20.94018591,213.05,212.99,28.597174]
[1731701078460,25.63328591,213.08,213.02,23.776884]
[1731701078660,25.63328591,213.08,213.01,20.94018591]
[1731701078661,20.94018591,213.07,213.0,20.94018591]
[1731701078971,20.94018591,213.07,213.01,23.776884]
[1731701079167,20.94018591,213.06,212.99,61.27495991]
[1731701079373,20.94018591,213.05,212.99,61.27495991]
[1731701080161,20.94018591,213.06,212.99,61.27495991]
[1731701080572,20.94018591,213.05,212.99,40.334774]
[1731701080779,20.94018591,213.06,212.99,61.27495991]
[1731701081667,20.94018591,213.07,213.01,20.94018591]
[1731701081983,20.94018591,213.08,213.02,23.902374]
[1731701082797,20.94018591,213.08,213.03,4.6941]
[1731701082969,20.94018591,213.08,213.04,23.776884]
[1731701083973,20.94018591,213.09,213.04,28.470784]
[1731701084371,20.94018591,213.1,213.04,28.470784]
[1731701084986,20.44018591,213.1,213.04,28.470784]
[1731701085280,20.94018591,213.1,213.04,28.470784]
[1731701085488,25.63268591,213.11,213.04,49.41096991]
[1731701085782,20.94018591,213.1,213.04,28.470784]
[1731701086887,20.94018591,213.09,213.04,28.470784]
[1731701087795,20.94018591,213.06,213.03,23.776884]
[1731701088391,20.94018591,213.04,213.0,23.776884]
[1731701088571,20.94018591,213.06,213.0,23.776884]
[1731701088897,13.09086992,213.06,213.01,4.6946]
[1731701089095,13.09086992,213.08,213.02,23.776884]
[1731701089276,13.09086992,213.11,213.04,13.09086992]
[1731701089473,13.09086992,213.11,213.05,23.776884]
[1731701090494,13.09086992,213.1,213.05,23.776884]
[1731701091173,13.09086992,213.08,213.05,23.776884]
[1731701091485,13.09086992,213.1,213.04,4.6937]
[1731701091689,13.09086992,213.11,213.04,29.51936992]
[1731701091873,13.09086992,213.1,213.04,16.4285]
[1731701092870,13.09086992,213.09,213.04,16.4285]
[1731701093573,13.09086992,213.1,213.04,16.4285]
[1731701094077,13.09086992,213.11,213.04,29.51936992]
[1731701094403,13.09086992,213.11,213.05,23.776884]
[1731701095299,13.09086992,213.1,213.05,23.776884]
[1731701095488,13.09086992,213.1,213.05,28.470384]
[1731701096603,13.09086992,213.07,213.02,20.0]
[1731701096901,13.09086992,213.06,213.02,20.0]
[1731701097113,13.09086992,213.07,213.01,20.0]
[1731701097408,13.09086992,213.08,213.01,13.09086992]
[1731701097696,13.09086992,213.08,213.02,24.6942]
[1731701097878,17.78346992,213.11,213.04,13.09086992]
[1731701099204,17.78346992,213.11,213.05,4.6937]
[1731701099683,13.09086992,213.11,213.05,29.51886992]
[1731701099886,13.09086992,213.11,213.06,23.776884]
[1731701100595,13.09086992,213.12,213.06,36.86775392]
[1731701101104,13.09086992,213.18,213.06,36.86775392]
[1731701101105,13.09086992,213.17,213.11,13.09086992]
[1731701101395,13.09086992,213.18,213.12,23.902374]
[1731701101602,13.09086992,213.18,213.12,36.99324392]
[1731701101796,13.09086992,213.17,213.12,23.902374]
[1731701102105,13.09086992,213.13,213.08,11.7326]
[1731701102400,13.09086992,213.11,213.07,23.776884]
[1731701102600,18.16986111,213.2,213.1,23.902374]
[1731701102896,18.16986111,213.2,213.09,23.776884]
[1731701103109,18.16986111,213.2,213.1,4.81809]
[1731701103488,18.16986111,213.2,213.08,23.902374]
[1731701103686,13.09086992,213.15,213.08,36.99324392]
[1731701103896,13.09086992,213.12,213.08,23.902374]
[1731701104201,13.09086992,213.09,213.03,4.6939]
[1731701104397,13.09086992,213.05,213.02,11.7354]
[1731701104606,13.09086992,213.05,213.02,16.4297]
[1731701104784,13.09086992,213.04,213.02,11.7354]
[1731701104977,13.09086992,213.05,213.02,11.7354]
[1731701105316,13.09086992,213.04,213.0,4.6946]
[1731701105483,13.09086992,213.05,213.0,4.6946]
[1731701105689,13.09086992,213.08,213.02,13.09086992]
[1731701105885,13.09086992,213.1,213.03,13.09086992]
[1731701106096,13.08660398,213.1,213.04,23.776884]
[1731701106613,13.08660398,213.08,213.04,23.776884]
[1731701106788,13.08660398,213.09,213.04,0.12549]
[1731701107185,13.08660398,213.1,213.06,23.776884]
[1731701107499,13.08660398,213.12,213.06,23.776884]
[1731701107803,13.08660398,213.13,213.07,13.08660398]
[1731701108000,13.08660398,213.16,213.1,23.776884]
[1731701108201,13.08660398,213.16,213.1,36.86348798]
[1731701108406,13.08660398,213.15,213.09,23.902374]
[1731701108591,13.08660398,213.1,213.06,0.12549]
[1731701108778,13.08660398,213.1,213.06,23.776884]
[1731701108984,13.08660398,213.09,213.05,11.7343]
[1731701109196,13.08660398,213.08,213.05,11.7343]
[1731701109891,13.08660398,213.08,213.01,13.08660398]
[1731701110093,13.08660398,213.08,213.02,13.08660398]
[1731701110523,4.6923,213.12,213.02,13.08660398]
[1731701110524,13.08660398,213.11,213.04,13.08660398]
[1731701110895,4.6923,213.12,213.04,13.08660398]
[1731701110896,13.08660398,213.1,213.04,13.08660398]
[1731701111209,13.08660398,213.1,213.05,4.6937]
[1731701111414,4.6923,213.12,212.97,6.0517]
[1731701111415,13.08660398,213.07,213.01,13.08660398]
[1731701111597,13.08660398,213.05,213.0,40.208684]
[1731701111794,13.08660398,213.04,213.0,40.208684]
[1731701112008,13.08660398,213.04,213.0,16.4318]
[1731701112199,13.08660398,213.07,213.0,29.51840398]
[1731701112608,19.02256562,213.14,213.0,16.4318]
[1731701112609,13.08660398,213.06,213.0,16.4318]
[1731701112812,13.08660398,213.03,213.0,11.737]
[1731701113392,13.08660398,213.05,212.98,13.08660398]
[1731701113593,13.08660398,213.08,213.01,13.08660398]
[1731701113900,13.08660398,213.09,213.02,13.08660398]
[1731701114392,13.08660398,213.08,213.01,13.08660398]
[1731701114718,13.08660398,213.08,213.02,4.6943]
[1731701115303,13.08660398,213.07,213.02,4.6943]
[1731701115525,13.08660398,213.05,213.01,23.902374]
[1731701115816,13.08660398,213.08,213.01,36.98897798]
[1731701116195,13.08660398,213.05,213.0,16.4313]
[1731701116623,13.08660398,213.06,213.0,16.4313]
[1731701117417,13.08660398,213.07,213.01,36.98897798]
[1731701117937,13.08660398,213.07,213.01,23.902374]
[1731701118429,13.08660398,213.08,213.01,36.98897798]
[1731701118610,13.08660398,213.07,213.01,23.902374]
[1731701118815,13.08660398,213.06,213.01,28.596774]
[1731701119207,13.08660398,213.07,213.01,28.596774]
[1731701119402,13.08660398,213.07,213.01,40.333274]
[1731701119825,13.08660398,213.11,213.04,36.86348798]
[1731701120023,13.08660398,213.11,213.04,13.08660398]
[1731701120310,13.08660398,213.08,213.02,0.09367462]
[1731701120926,13.08660398,213.07,213.02,0.09367462]
[1731701121110,13.08660398,213.05,213.02,0.09367462]
[1731701121422,13.08660398,213.08,213.03,23.902374]
[1731701121622,13.08660398,213.09,213.03,23.902374]
[1731701121832,19.9682,213.16,213.07,23.902374]
[1731701122022,13.08660398,213.13,213.07,23.902374]
[1731701122331,13.08660398,213.12,213.07,23.902374]
[1731701122531,13.08660398,213.13,213.07,23.902374]
[1731701122727,13.08660398,213.12,213.07,23.902374]
[1731701122906,13.08283923,213.12,213.08,4.693]
[1731701124230,13.08283923,213.16,213.09,37.07888785]
[1731701124434,13.08283923,213.17,213.12,23.902374]
[1731701124635,13.08283923,213.15,213.12,23.902374]
[1731701124835,13.08283923,213.16,213.12,23.902374]
[1731701125133,13.08283923,213.16,213.1,24.027864]
[1731701125428,13.08283923,213.16,213.12,23.902374]
[1731701125630,13.13265733,213.2,213.12,23.902374]
[1731701125831,13.08283923,213.17,213.12,23.902374]
[1731701126036,13.13265733,213.2,213.11,16.4234]
[1731701126037,13.08283923,213.16,213.11,16.4234]
[1731701126238,13.08283923,213.13,213.11,11.731]
[1731701126533,13.08283923,213.14,213.11,11.731]
[1731701126925,13.08283923,213.15,213.12,23.902374]
[1731701127125,13.08283923,213.16,213.12,23.902374]
[1731701127327,0.09367462,213.21,213.14,23.902374]
[1731701127532,13.17651385,213.21,213.14,36.98521323]
[1731701128246,0.09367462,213.21,213.17,23.776884]
[1731701129134,0.09367462,213.21,213.17,28.467784]
[1731701130317,13.17651385,213.21,213.17,28.467784]
[1731701130512,13.08283923,213.18,213.14,16.23379]
[1731701130714,13.08283923,213.15,213.14,44.702174]
[1731701130942,13.08283923,213.19,213.14,56.431474]
[1731701131843,0.09367462,213.21,213.17,23.776884]
[1731701132332,0.09367462,213.21,213.17,4.6909]
[1731701132529,13.08283923,213.21,213.17,4.6909]
[1731701132838,13.08283923,213.2,213.17,4.6909]
[1731701133656,13.08283923,213.19,213.17,28.593274]
[1731701133823,13.08283923,213.2,213.17,28.593274]
[1731701134922,13.08283923,213.21,213.17,40.320974]
[1731701135139,13.54025613,213.25,213.18,36.98521323]
[1731701135336,0.4574169,213.25,213.2,24.027864]
[1731701135644,0.4574169,213.25,213.2,37.11070323]
[1731701136346,0.4574169,213.25,213.21,4.6902]
[1731701136515,13.54025613,213.25,213.22,23.902374]
[1731701136721,13.08283923,213.23,213.16,44.027864]
[1731701136922,13.08283923,213.22,213.17,0.09367462]
[1731701137434,13.54025613,213.25,213.19,23.902374]
[1731701137635,0.4574169,213.25,213.21,23.902374]
[1731701138734,0.4574169,213.25,213.23,23.902374]
[1731701139734,0.4574169,213.25,213.24,73.25737785]
[1731701140051,13.08283923,213.34,213.24,66.77325315]
[1731701140361,13.08283923,213.43,213.34,24.12153862]
[1731701140551,13.08283923,213.43,213.36,13.08283923]
[1731701140847,13.08283923,213.43,213.38,4.6864]
[1731701141040,13.08283923,213.42,213.38,4.6864]
[1731701141442,13.08283923,213.42,213.37,23.776884]
[1731701141637,13.08283923,213.41,213.37,23.776884]
[1731701142037,13.08283923,213.41,213.37,28.463484]
[1731701142537,13.08283923,213.41,213.37,23.776884]
[1731701142755,13.08283923,213.38,213.32,23.776884]
[1731701143064,13.08283923,213.33,213.29,15.7821]
[1731701143232,13.08283923,213.3,213.26,16.4112]
[1731701143433,4.6865,213.38,213.26,16.4112]
[1731701143738,13.08283923,213.29,213.26,16.4112]
[1731701144135,13.08283923,213.27,213.21,13.08283923]
[1731701144335,13.08283923,213.29,213.22,13.08283923]
[1731701144533,13.08283923,213.3,213.23,13.08283923]
[1731701144735,13.08283923,213.29,213.22,13.08283923]
[1731701145345,4.6849,213.45,213.3,0.12549]
[1731701145543,13.08283923,213.44,213.38,23.776884]
[1731701146034,13.08283923,213.43,213.38,23.776884]
[1731701146441,13.08283923,213.39,213.32,20.0]
[1731701146644,13.08283923,213.36,213.33,23.902374]
[1731701146850,20.88407255,213.37,213.33,23.902374]
[1731701147364,20.88407255,213.39,213.34,23.776884]
[1731701147863,20.88407255,213.38,213.34,23.776884]
[1731701148062,20.88407255,213.37,213.34,23.776884]
[1731701148269,20.88407255,213.38,213.34,23.776884]
[1731701148451,0.31916462,213.34,213.14,41.51083848]
[1731701148644,0.31916462,213.34,213.16,20.88407255]
[1731701148645,20.88407255,213.23,213.16,20.88407255]
[1731701148966,20.88407255,213.2,213.14,20.1104]
[1731701149164,20.88407255,213.19,213.14,20.1104]
[1731701149463,20.88407255,213.18,213.12,11.73]
[1731701149861,20.88407255,213.22,213.15,20.97774717]
[1731701150057,20.88407255,213.25,213.18,20.88407255]
[1731701150381,20.88407255,213.24,213.16,20.88407255]
[1731701150670,10.8244,213.27,213.13,16.4218]
[1731701151565,10.8244,213.27,213.13,11.7299]
[1731701151741,20.88407255,213.22,213.15,20.88407255]
[1731701151944,20.88407255,213.24,213.17,23.902374]
[1731701152160,20.88407255,213.25,213.18,20.88407255]
[1731701152354,20.88407255,213.25,213.19,23.776884]
[1731701152756,20.88407255,213.24,213.19,23.776884]
[1731701152944,20.88407255,213.23,213.18,23.776884]
[1731701153146,20.88407255,213.24,213.18,23.776884]
[1731701154553,20.88407255,213.23,213.18,23.776884]
[1731701154754,20.88407255,213.22,213.18,23.776884]
[1731701154967,20.88407255,213.19,213.13,11.7299]
[1731701155161,20.88407255,213.17,213.13,11.7299]
[1731701155769,20.88407255,213.2,213.13,37.30587255]
[1731701156073,20.88407255,213.21,213.14,45.00561117]
[1731701156276,20.88407255,213.23,213.16,20.88407255]
[1731701156458,20.88407255,213.24,213.17,44.66095655]
[1731701156658,20.88407255,213.23,213.17,23.776884]
[1731701157252,20.88407255,213.24,213.17,44.66095655]
[1731701157469,27.01947255,213.27,213.2,44.66095655]
[1731701157671,20.88407255,213.25,213.2,23.776884]
[1731701157895,20.88407255,213.25,213.19,23.776884]
[1731701158054,20.88407255,213.26,213.19,23.776884]
[1731701158453,20.88407255,213.26,213.19,28.467284]
[1731701158656,20.88407255,213.26,213.19,49.35135655]
[1731701159061,25.57287255,213.28,213.19,40.193884]
[1731701159269,20.88407255,213.26,213.19,61.07795655]
[1731701159476,20.88407255,213.25,213.19,40.193884]
[1731701159776,20.88407255,213.3,213.23,20.88407255]
[1731701159981,20.88407255,213.26,213.19,76.21875655]
[1731701160280,20.88407255,213.26,213.2,20.88407255]
[1731701160583,20.88407255,213.28,213.22,44.66095655]
[1731701160766,36.54437255,213.31,213.24,20.88407255]
[1731701160965,20.88407255,213.32,213.25,44.66095655]
[1731701161483,20.88407255,213.31,213.25,23.776884]
[1731701161654,4.6871,213.35,213.25,23.776884]
[1731701161655,20.88407255,213.3,213.25,23.776884]
[1731701162060,20.88407255,213.3,213.24,23.902374]
[1731701162279,20.88407255,213.3,213.25,0.12549]
[1731701162577,20.88407255,213.3,213.25,4.81469]
[1731701162957,20.88407255,213.3,213.26,23.776884]
[1731701163354,20.88407255,213.31,213.26,23.776884]
[1731701163968,20.88407255,213.31,213.26,4.689]
[1731701164163,20.88407255,213.35,213.28,20.88407255]
[1731701164359,20.88407255,213.32,213.27,23.902374]
[1731701164576,20.88407255,213.29,213.26,11.7227]
[1731701164882,20.88407255,213.31,213.26,11.7227]
[1731701165255,20.88407255,213.32,213.26,16.4118]
[1731701165455,20.88407255,213.29,213.26,11.7227]
[1731701165660,20.88407255,213.29,213.22,20.88407255]
[1731701165661,20.88407255,213.27,213.23,23.776884]
[1731701166274,20.88407255,213.27,213.24,23.776884]
[1731701166591,20.88407255,213.27,213.21,11.7253]
[1731701166592,20.88407255,213.25,213.15,11.7282]
[1731701166763,20.88407255,213.18,213.15,16.4195]
[1731701166962,20.88407255,213.17,213.11,11.731]
[1731701167169,20.88407255,213.16,213.11,16.4234]
[1731701167462,20.88407255,213.19,213.12,20.97774717]
[1731701167679,20.88407255,213.21,213.14,20.88407255]
[1731701168064,20.88407255,213.21,213.15,16.4203]
[1731701168385,20.88407255,213.2,213.15,16.4203]
[1731701168564,20.88407255,213.19,213.15,11.7288]
[1731701168890,20.88407255,213.18,213.15,11.7288]
[1731701169271,20.88407255,213.19,213.15,11.7288]
[1731701169487,20.88407255,213.19,213.15,16.4203]
[1731701169884,20.88407255,213.19,213.15,11.7288]
[1731701170385,36.06607255,213.29,213.15,11.7288]
[1731701170386,4.6875,213.33,213.19,0.25098]
[1731701170592,50.93973736,213.36,213.32,20.88407255]
[1731701170796,43.7,213.45,213.38,24.027864]
[1731701171090,25.56777255,213.51,213.38,24.027864]
[1731701171091,43.7,213.44,213.41,0.12549]
[1731701171265,43.7,213.44,213.4,23.902374]
[1731701171266,43.7,213.43,213.42,20.88407255]
[1731701171466,43.7,213.43,213.26,0.25098]
[1731701171467,43.7,213.42,213.26,0.25098]
[1731701171679,20.88407255,213.33,213.28,24.027864]
[1731701171867,20.88407255,213.34,213.29,4.6884]
[1731701172074,20.88407255,213.34,213.3,23.902374]
[1731701172464,20.88407255,213.36,213.3,23.902374]
[1731701172666,43.7,213.4,213.32,23.902374]
[1731701172873,20.88407255,213.36,213.3,23.902374]
[1731701173890,43.7,213.39,213.29,16.4095]
[1731701173891,20.88407255,213.32,213.29,11.7211]
[1731701174186,20.88407255,213.34,213.29,11.7211]
[1731701174490,43.7,213.38,213.33,20.88407255]
[1731701174802,43.7,213.37,213.31,20.88407255]
[1731701175091,43.7,213.37,213.31,23.776884]
[1731701176084,43.7,213.37,213.31,44.66095655]
[1731701176588,43.7,213.36,213.31,44.66095655]
[1731701176792,43.7,213.36,213.33,20.88407255]
[1731701176994,43.7,213.36,213.32,20.88407255]
[1731701177199,20.88407255,213.42,213.34,20.88407255]
[1731701177491,20.88407255,213.41,213.34,20.88407255]
[1731701177694,20.88407255,213.44,213.37,20.88407255]
[1731701177994,0.4574169,213.46,213.4,20.88407255]
[1731701178878,0.4574169,213.46,213.44,20.88407255]
[1731701179077,0.4574169,213.46,213.42,20.88407255]
[1731701179304,0.4574169,213.46,213.41,23.902374]
[1731701179592,0.4574169,213.46,213.41,44.78644655]
[1731701179976,0.4574169,213.46,213.41,23.902374]
[1731701180691,0.4574169,213.46,213.41,44.78644655]
[1731701180892,0.4574169,213.46,213.42,20.88407255]
[1731701181094,0.4574169,213.46,213.44,44.66095655]
[1731701181285,0.4574169,213.46,213.45,20.88407255]
[1731701181479,0.4574169,213.46,213.44,23.776884]
[1731701182578,0.4574169,213.46,213.44,28.461884]
[1731701182983,0.4574169,213.46,213.43,11.7134]
[1731701183178,0.4574169,213.46,213.42,20.88407255]
[1731701183392,20.88407255,213.45,213.39,4.6861]
[1731701183690,20.88407255,213.43,213.38,11.7158]
[1731701183911,5.1422169,213.46,213.38,16.4022]
[1731701184217,20.88407255,213.45,213.38,37.28627255]
[1731701184397,0.4574169,213.46,213.43,20.88407255]
[1731701184810,0.4574169,213.46,213.42,20.88407255]
[1731701185616,0.4574169,213.46,213.42,25.56957255]
[1731701186024,0.4574169,213.46,213.42,4.6855]
[1731701186411,0.4574169,213.46,213.43,20.88407255]
[1731701186709,0.4574169,213.46,213.45,64.91193655]
[1731701186914,0.4574169,213.46,213.42,16.3994]
[1731701186915,0.4574169,213.46,213.43,44.66095655]
[1731701187098,0.4574169,213.46,213.44,0.12549]
[1731701187306,0.4574169,213.46,213.45,20.88407255]
[1731701187711,0.4574169,213.46,213.45,25.56897255]
[1731701188508,0.4574169,213.46,213.45,4.6849]
[1731701188710,21.34148945,213.46,213.38,20.88407255]
[1731701189009,21.34148945,213.46,213.39,4.6861]
[1731701189711,20.88407255,213.45,213.39,4.6861]
[1731701190500,20.88407255,213.41,213.33,11.7189]
[1731701190813,20.88407255,213.35,213.27,20.88407255]
[1731701191016,20.88407255,213.34,213.27,20.88407255]
[1731701191212,20.88407255,213.35,213.28,20.88407255]
[1731701191527,4.7851,213.45,213.28,20.88407255]